[Event "Live Chess"]
[Site "Chess.com"]
[Date "2020.05.16"]
[Round "2.24"]
[White "Varney, Zoe"]
[Black "Somton, Anita"]
[Result "0-1"]
[ECO "A55"]
[WhiteElo "1961"]
[BlackElo "1921"]
[PlyCount "88"]
[EventDate "2020.??.??"]
[TimeControl "180+2"]
[WhiteClock "0:01:06"]
[BlackClock "0:00:45"]

1. e4 {[%emt 0:00:00]} c6 {[%emt 0:00:01]} 2. c4 {[%emt 0:00:01]} e5 {[%emt 0:
00:01]} 3. Nf3 {[%emt 0:00:01]} d6 {[%emt 0:00:01]} 4. d4 {[%emt 0:00:01]} Nd7
{[%emt 0:00:01]} 5. Nc3 {[%emt 0:00:01]} Ngf6 {[%emt 0:00:02]} 6. Be2 {[%emt 0:
00:04]} Be7 {[%emt 0:00:01]} 7. O-O {[%emt 0:00:01]} O-O {[%emt 0:00:01]} 8. b4
{[%emt 0:00:04]} a6 {[%emt 0:00:04]} 9. a4 {[%emt 0:00:03]} Re8 {[%emt 0:00:10]
} 10. Bb2 {[%emt 0:00:01]} Nf8 {[%emt 0:00:09]} 11. dxe5 {[%emt 0:00:07]} dxe5
{[%emt 0:00:03]} 12. Qxd8 {[%emt 0:00:01]} Rxd8 {[%emt 0:00:01]} 13. c5 {
[%emt 0:00:04]} Ng6 {[%emt 0:00:04]} 14. Rfd1 {[%emt 0:00:05]} Be6 {[%emt 0:00:
10]} 15. Rxd8+ {[%emt 0:00:21]} Rxd8 {[%emt 0:00:03]} 16. Rd1 {[%emt 0:00:01]}
Rxd1+ {[%emt 0:00:15]} 17. Bxd1 {[%emt 0:00:01]} Bc4 {[%emt 0:00:05]} 18. Bc2 {
[%emt 0:00:12]} Bd8 {[%emt 0:00:10]} 19. Nd2 {[%emt 0:00:03]} Be6 {[%emt 0:00:
04]} 20. Kf1 {[%emt 0:00:03]} b6 {[%emt 0:00:11]} 21. cxb6 {[%emt 0:00:12]}
Bxb6 {[%emt 0:00:01]} 22. Ke2 {[%emt 0:00:13]} Ng4 {[%emt 0:00:06]} 23. f3 {
[%emt 0:00:23]} Nf4+ {[%emt 0:00:09]} 24. Kd1 {[%emt 0:00:19]} Ne3+ {[%emt 0:
00:03]} 25. Kc1 {[%emt 0:00:03]} Nfxg2 {[%emt 0:00:11]} 26. Bb3 {[%emt 0:00:13]
} Bxb3 {[%emt 0:00:07]} 27. Nxb3 {[%emt 0:00:01]} Nh4 {[%emt 0:00:03]} 28. Ne2
{[%emt 0:00:13]} Nxf3 {[%emt 0:00:04]} 29. h3 {[%emt 0:00:02]} Nc4 {[%emt 0:00:
08]} 30. Bc3 {[%emt 0:00:03]} f6 {[%emt 0:00:03]} 31. a5 {[%emt 0:00:04]} Be3+
{[%emt 0:00:03]} 32. Kc2 {[%emt 0:00:02]} Ng5 {[%emt 0:00:02]} 33. Ng3 {
[%emt 0:00:11]} Nxh3 {[%emt 0:00:03]} 34. Kd3 {[%emt 0:00:02]} Bf2 {[%emt 0:00:
05]} 35. Nf5 {[%emt 0:00:08]} Na3 {[%emt 0:00:06]} 36. Ne7+ {[%emt 0:00:02]}
Kf7 {[%emt 0:00:02]} 37. Nxc6 {[%emt 0:00:01]} Nf4+ {[%emt 0:00:04]} 38. Kd2 {
[%emt 0:00:05]} Nc4+ {[%emt 0:00:04]} 39. Kc2 {[%emt 0:00:04]} h5 {[%emt 0:00:
09]} 40. Nc5 {[%emt 0:00:02]} h4 {[%emt 0:00:04]} 41. Nxa6 {[%emt 0:00:04]} h3
{[%emt 0:00:02]} 42. b5 {[%emt 0:00:01]} h2 {[%emt 0:00:03]} 43. b6 {[%emt 0:
00:03]} Nxb6 {[%emt 0:00:03]} 44. axb6 {[%emt 0:00:02]} Bxb6 {[%emt 0:00:01]
Somton, Anita won by resignation} 0-1

[Event "Live Chess"]
[Site "Chess.com"]
[Date "2020.05.16"]
[Round "2.25"]
[White "Varney, Zoe"]
[Black "Somton, Anita"]
[Result "0-1"]
[ECO "A55"]
[WhiteElo "1949"]
[BlackElo "1930"]
[PlyCount "86"]
[EventDate "2020.??.??"]
[TimeControl "300"]
[WhiteClock "0:00:24"]
[BlackClock "0:00:06"]

1. e4 {[%emt 0:00:00]} c6 {[%emt 0:01:01]} 2. c4 {[%emt 0:00:01]} e5 {[%emt 0:
00:01]} 3. Nf3 {[%emt 0:00:01]} d6 {[%emt 0:00:01]} 4. d4 {[%emt 0:00:01]} Nd7
{[%emt 0:00:01]} 5. Nc3 {[%emt 0:00:02]} Ngf6 {[%emt 0:00:02]} 6. Be2 {[%emt 0:
00:01]} Be7 {[%emt 0:00:01]} 7. O-O {[%emt 0:00:01]} O-O {[%emt 0:00:00]} 8.
Qc2 {[%emt 0:00:01]} a6 {[%emt 0:00:05]} 9. Rd1 {[%emt 0:00:03]} Qc7 {[%emt 0:
00:06]} 10. Be3 {[%emt 0:00:01]} Re8 {[%emt 0:00:07]} 11. h3 {[%emt 0:00:01]}
Nf8 {[%emt 0:00:07]} 12. b4 {[%emt 0:00:03]} exd4 {[%emt 0:00:04]} 13. Nxd4 {
[%emt 0:00:20]} Ne6 {[%emt 0:00:08]} 14. Nf5 {[%emt 0:00:04]} Bd7 {[%emt 0:00:
09]} 15. Na4 {[%emt 0:00:28]} c5 {[%emt 0:00:07]} 16. bxc5 {[%emt 0:00:07]}
dxc5 {[%emt 0:00:04]} 17. Nxe7+ {[%emt 0:00:03]} Rxe7 {[%emt 0:00:06]} 18. Nc3
{[%emt 0:00:06]} Qe5 {[%emt 0:00:15]} 19. f3 {[%emt 0:00:06]} Bc6 {[%emt 0:00:
05]} 20. Nd5 {[%emt 0:00:07]} Ree8 {[%emt 0:00:04]} 21. Rab1 {[%emt 0:00:11]}
Nh5 {[%emt 0:00:05]} 22. Bc1 {[%emt 0:00:19]} Nhf4 {[%emt 0:00:13]} 23. Nxf4 {
[%emt 0:00:06]} Nxf4 {[%emt 0:00:02]} 24. Bb2 {[%emt 0:00:02]} Qg5 {[%emt 0:00:
02]} 25. Bf1 {[%emt 0:00:03]} Nxh3+ {[%emt 0:00:02]} 26. Kh2 {[%emt 0:00:08]}
Nf4 {[%emt 0:00:03]} 27. Qf2 {[%emt 0:00:33]} Re6 {[%emt 0:00:06]} 28. g3 {
[%emt 0:00:12]} Rh6+ {[%emt 0:00:19]} 29. Kg1 {[%emt 0:00:02]} Nh3+ {[%emt 0:
00:14]} 30. Bxh3 {[%emt 0:00:02]} Rxh3 {[%emt 0:00:01]} 31. Kg2 {[%emt 0:00:09]
} Rh5 {[%emt 0:00:13]} 32. Rh1 {[%emt 0:00:08]} Rxh1 {[%emt 0:00:02]} 33. Rxh1
{[%emt 0:00:02]} Rd8 {[%emt 0:00:01]} 34. Bc1 {[%emt 0:00:04]} Qg6 {[%emt 0:00:
03]} 35. Qxc5 {[%emt 0:00:06]} h6 {[%emt 0:00:18]} 36. Qe3 {[%emt 0:00:14]} b5
{[%emt 0:00:03]} 37. cxb5 {[%emt 0:00:03]} Bxb5 {[%emt 0:00:01]} 38. Rh4 {
[%emt 0:00:09]} Rd3 {[%emt 0:00:02]} 39. Qf4 {[%emt 0:00:01]} Qe6 {[%emt 0:00:
04]} 40. Rg4 {[%emt 0:00:20]} Kh7 {[%emt 0:00:05]} 41. Kh3 {[%emt 0:00:14]} h5
{[%emt 0:00:03]} 42. Kh4 {[%emt 0:00:09]} hxg4 {[%emt 0:00:01]} 43. fxg4 {
[%emt 0:00:04]} Qh6+ {[%emt 0:00:01] Somton, Anita won by resignation} 0-1

[Event "Live Chess"]
[Site "Chess.com"]
[Date "2020.05.16"]
[Round "2.31"]
[White "Sucikova, Svetlana"]
[Black "Dicen, Elis"]
[Result "1-0"]
[ECO "A13"]
[WhiteElo "2117"]
[BlackElo "1878"]
[PlyCount "137"]
[EventDate "2020.??.??"]
[TimeControl "180+2"]
[WhiteClock "0:00:57"]
[BlackClock "0:01:08"]

1. Nf3 {[%emt 0:00:02]} e6 {[%emt 0:00:01]} 2. e3 {[%emt 0:00:03]} Nf6 {
[%emt 0:00:01]} 3. c4 {[%emt 0:00:01]} Be7 {[%emt 0:00:02]} 4. Nc3 {[%emt 0:00:
01]} O-O {[%emt 0:00:02]} 5. Be2 {[%emt 0:00:01]} d5 {[%emt 0:00:01]} 6. b3 {
[%emt 0:00:01]} c5 {[%emt 0:00:03]} 7. cxd5 {[%emt 0:00:06]} exd5 {[%emt 0:00:
01]} 8. d4 {[%emt 0:00:09]} cxd4 {[%emt 0:00:02]} 9. Nxd4 {[%emt 0:00:03]} Bb4
{[%emt 0:00:08]} 10. Bd2 {[%emt 0:00:06]} Nbd7 {[%emt 0:00:06]} 11. O-O {
[%emt 0:00:06]} b6 {[%emt 0:00:06]} 12. Nc6 {[%emt 0:00:05]} Qc7 {[%emt 0:00:
21]} 13. Nxb4 {[%emt 0:00:03]} Bb7 {[%emt 0:00:02]} 14. Rc1 {[%emt 0:00:11]}
Qe5 {[%emt 0:00:09]} 15. Nd3 {[%emt 0:00:06]} Qe7 {[%emt 0:00:03]} 16. Nb5 {
[%emt 0:00:07]} Ne4 {[%emt 0:00:10]} 17. Bb4 {[%emt 0:00:08]} Ndc5 {[%emt 0:00:
05]} 18. Nd4 {[%emt 0:00:22]} Rac8 {[%emt 0:00:06]} 19. Nf3 {[%emt 0:00:18]} h6
{[%emt 0:00:11]} 20. Nxc5 {[%emt 0:00:08]} bxc5 {[%emt 0:00:04]} 21. Ba3 {
[%emt 0:00:01]} Rfd8 {[%emt 0:00:10]} 22. Bd3 {[%emt 0:00:02]} Nf6 {[%emt 0:00:
04]} 23. Bb1 {[%emt 0:00:05]} Ba6 {[%emt 0:00:08]} 24. Re1 {[%emt 0:00:02]} Bb7
{[%emt 0:00:02]} 25. Bb2 {[%emt 0:00:05]} Ne4 {[%emt 0:00:05]} 26. Nd2 {
[%emt 0:00:08]} Ba8 {[%emt 0:00:11]} 27. Nxe4 {[%emt 0:00:04]} dxe4 {[%emt 0:
00:02]} 28. Qc2 {[%emt 0:00:01]} Rd7 {[%emt 0:00:11]} 29. Qc3 {[%emt 0:00:02]}
f6 {[%emt 0:00:05]} 30. Rcd1 {[%emt 0:00:03]} Rdc7 {[%emt 0:00:04]} 31. Rd2 {
[%emt 0:00:02]} c4 {[%emt 0:00:02]} 32. bxc4 {[%emt 0:00:05]} Rxc4 {[%emt 0:00:
02]} 33. Qb3 {[%emt 0:00:01]} Kh8 {[%emt 0:00:05]} 34. Red1 {[%emt 0:00:06]}
R4c7 {[%emt 0:00:04]} 35. Ba3 {[%emt 0:00:04]} Qe8 {[%emt 0:00:16]} 36. Rc2 {
[%emt 0:00:10]} Rxc2 {[%emt 0:00:05]} 37. Bxc2 {[%emt 0:00:00]} Qc6 {[%emt 0:
00:03]} 38. Bb1 {[%emt 0:00:03]} a6 {[%emt 0:00:06]} 39. h3 {[%emt 0:00:01]}
Qc7 {[%emt 0:00:03]} 40. Rc1 {[%emt 0:00:05]} Qd8 {[%emt 0:00:02]} 41. Rxc8 {
[%emt 0:00:02]} Qxc8 {[%emt 0:00:01]} 42. Qc2 {[%emt 0:00:04]} Qb7 {[%emt 0:00:
04]} 43. Qb3 {[%emt 0:00:04]} Qc8 {[%emt 0:00:03]} 44. Bc2 {[%emt 0:00:03]} Bb7
{[%emt 0:00:08]} 45. Bd1 {[%emt 0:00:01]} Kh7 {[%emt 0:00:02]} 46. Bg4 {
[%emt 0:00:01]} Qc7 {[%emt 0:00:03]} 47. Bf5+ {[%emt 0:00:02]} Kh8 {[%emt 0:00:
02]} 48. Qb4 {[%emt 0:00:02]} Qb8 {[%emt 0:00:03]} 49. Bxe4 {[%emt 0:00:09]}
Qc8 {[%emt 0:00:03]} 50. Qxb7 {[%emt 0:00:03]} Qd8 {[%emt 0:00:07]} 51. Qe7 {
[%emt 0:00:06]} Qxe7 {[%emt 0:00:02]} 52. Bxe7 {[%emt 0:00:02]} Kg8 {[%emt 0:
00:01]} 53. a4 {[%emt 0:00:02]} Kf7 {[%emt 0:00:01]} 54. Bc5 {[%emt 0:00:01]}
Ke6 {[%emt 0:00:01]} 55. Bb7 {[%emt 0:00:01]} Kd7 {[%emt 0:00:01]} 56. Bxa6 {
[%emt 0:00:01]} Kc7 {[%emt 0:00:01]} 57. Bf8 {[%emt 0:00:01]} Kb6 {[%emt 0:00:
02]} 58. Bb5 {[%emt 0:00:01]} Ka5 {[%emt 0:00:01]} 59. Bxg7 {[%emt 0:00:01]} f5
{[%emt 0:00:01]} 60. Bxh6 {[%emt 0:00:01]} Kb6 {[%emt 0:00:00]} 61. Bg5 {
[%emt 0:00:01]} Ka7 {[%emt 0:00:00]} 62. h4 {[%emt 0:00:01]} Ka8 {[%emt 0:00:
01]} 63. h5 {[%emt 0:00:00]} Kb7 {[%emt 0:00:00]} 64. h6 {[%emt 0:00:00]} Ka7 {
[%emt 0:00:01]} 65. h7 {[%emt 0:00:00]} Kb7 {[%emt 0:00:00]} 66. h8=Q {[%emt 0:
00:03]} Ka7 {[%emt 0:00:01]} 67. Qg7+ {[%emt 0:00:01]} Ka8 {[%emt 0:00:01]} 68.
Bc6+ {[%emt 0:00:02]} Kb8 {[%emt 0:00:01]} 69. Qb7# {[%emt 0:00:01] Sucikova, Svetlana won
by checkmate} 1-0

[Event "Live Chess"]
[Site "Chess.com"]
[Date "2020.05.16"]
[Round "2.32"]
[White "Dicen, Elis"]
[Black "Sucikova, Svetlana"]
[Result "0-1"]
[ECO "B13"]
[WhiteElo "1875"]
[BlackElo "2121"]
[PlyCount "120"]
[EventDate "2020.??.??"]
[TimeControl "180+2"]
[WhiteClock "0:00:20"]
[BlackClock "0:00:19"]

1. e4 {[%emt 0:00:00]} c6 {[%emt 0:00:00]} 2. Nf3 {[%emt 0:00:02]} d5 {[%emt 0:
00:01]} 3. exd5 {[%emt 0:00:01]} cxd5 {[%emt 0:00:02]} 4. d4 {[%emt 0:00:01]}
Nc6 {[%emt 0:00:03]} 5. Bd3 {[%emt 0:00:02]} Nf6 {[%emt 0:00:02]} 6. O-O {
[%emt 0:00:01]} Bg4 {[%emt 0:00:03]} 7. Be3 {[%emt 0:00:04]} e6 {[%emt 0:00:03]
} 8. Nc3 {[%emt 0:00:05]} Be7 {[%emt 0:00:07]} 9. Re1 {[%emt 0:00:09]} O-O {
[%emt 0:00:02]} 10. h3 {[%emt 0:00:02]} Bh5 {[%emt 0:00:02]} 11. Be2 {[%emt 0:
00:12]} a6 {[%emt 0:00:10]} 12. Nh2 {[%emt 0:00:05]} Bg6 {[%emt 0:00:06]} 13.
Bd3 {[%emt 0:00:03]} b5 {[%emt 0:00:11]} 14. Bxg6 {[%emt 0:00:02]} hxg6 {
[%emt 0:00:02]} 15. a3 {[%emt 0:00:03]} Qc7 {[%emt 0:00:09]} 16. Nf3 {[%emt 0:
00:10]} Bd6 {[%emt 0:00:03]} 17. Qd2 {[%emt 0:00:02]} Na5 {[%emt 0:00:06]} 18.
Qe2 {[%emt 0:00:04]} Nc4 {[%emt 0:00:03]} 19. Rab1 {[%emt 0:00:02]} Nxa3 {
[%emt 0:00:07]} 20. Bg5 {[%emt 0:00:07]} Nc4 {[%emt 0:00:11]} 21. Bxf6 {
[%emt 0:00:03]} gxf6 {[%emt 0:00:00]} 22. Nd1 {[%emt 0:00:13]} Rac8 {[%emt 0:
00:06]} 23. c3 {[%emt 0:00:02]} Kg7 {[%emt 0:00:03]} 24. Ne3 {[%emt 0:00:03]}
Nxe3 {[%emt 0:00:02]} 25. fxe3 {[%emt 0:00:02]} Bg3 {[%emt 0:00:03]} 26. Rf1 {
[%emt 0:00:01]} Rb8 {[%emt 0:00:07]} 27. e4 {[%emt 0:00:01]} dxe4 {[%emt 0:00:
03]} 28. Qxe4 {[%emt 0:00:02]} Rfd8 {[%emt 0:00:04]} 29. Qe2 {[%emt 0:00:04]}
Rd5 {[%emt 0:00:04]} 30. Nd2 {[%emt 0:00:02]} Bd6 {[%emt 0:00:23]} 31. Ne4 {
[%emt 0:00:11]} Be7 {[%emt 0:00:02]} 32. Qf3 {[%emt 0:00:06]} f5 {[%emt 0:00:
12]} 33. Ng3 {[%emt 0:00:03]} b4 {[%emt 0:00:05]} 34. Ne2 {[%emt 0:00:08]} Rdb5
{[%emt 0:00:07]} 35. Nf4 {[%emt 0:00:07]} bxc3 {[%emt 0:00:03]} 36. Qg3 {
[%emt 0:00:13]} Bd6 {[%emt 0:00:14]} 37. Nh5+ {[%emt 0:00:20]} Kf8 {[%emt 0:00:
02]} 38. Qg5 {[%emt 0:00:15]} gxh5 {[%emt 0:00:05]} 39. Qh6+ {[%emt 0:00:02]}
Ke8 {[%emt 0:00:03]} 40. Qh8+ {[%emt 0:00:05]} Bf8 {[%emt 0:00:05]} 41. Qxh5 {
[%emt 0:00:05]} Rxb2 {[%emt 0:00:07]} 42. Rbe1 {[%emt 0:00:08]} Qc6 {[%emt 0:
00:08]} 43. Qg5 {[%emt 0:00:15]} c2 {[%emt 0:00:11]} 44. d5 {[%emt 0:00:06]}
Qxd5 {[%emt 0:00:09]} 45. Rxf5 {[%emt 0:00:15]} Qd1 {[%emt 0:00:12]} 46. Rff1 {
[%emt 0:00:06]} Qd7 {[%emt 0:00:13]} 47. Qf4 {[%emt 0:00:03]} Rb1 {[%emt 0:00:
03]} 48. Qe4 {[%emt 0:00:04]} Rxe1 {[%emt 0:00:03]} 49. Qxe1 {[%emt 0:00:03]}
Rb1 {[%emt 0:00:03]} 50. Qf2 {[%emt 0:00:03]} Rxf1+ {[%emt 0:00:02]} 51. Qxf1 {
[%emt 0:00:02]} Qd1 {[%emt 0:00:01]} 52. Qxd1 {[%emt 0:00:02]} cxd1=Q+ {
[%emt 0:00:00]} 53. Kf2 {[%emt 0:00:01]} a5 {[%emt 0:00:01]} 54. Kg3 {[%emt 0:
00:01]} a4 {[%emt 0:00:00]} 55. Kf2 {[%emt 0:00:01]} a3 {[%emt 0:00:00]} 56.
Kg3 {[%emt 0:00:01]} a2 {[%emt 0:00:00]} 57. Kf2 {[%emt 0:00:01]} a1=Q {
[%emt 0:00:00]} 58. Kg3 {[%emt 0:00:01]} Qe5+ {[%emt 0:00:02]} 59. Kh4 {
[%emt 0:00:02]} Qdd4+ {[%emt 0:00:02]} 60. g4 {[%emt 0:00:03]} Qf2# {[%emt 0:
00:01] Sucikova, Svetlana won by checkmate} 0-1

[Event "Live Chess"]
[Site "Chess.com"]
[Date "2020.05.16"]
[Round "2.33"]
[White "Sucikova, Svetlana"]
[Black "Dicen, Elis"]
[Result "1-0"]
[ECO "A13"]
[WhiteElo "2125"]
[BlackElo "1872"]
[PlyCount "153"]
[EventDate "2020.??.??"]
[TimeControl "180+2"]
[WhiteClock "0:01:14"]
[BlackClock "0:00:58"]

1. Nf3 {[%emt 0:00:00]} e6 {[%emt 0:00:01]} 2. c4 {[%emt 0:00:02]} Nf6 {
[%emt 0:00:01]} 3. e3 {[%emt 0:00:01]} d5 {[%emt 0:00:01]} 4. b3 {[%emt 0:00:
04]} dxc4 {[%emt 0:00:02]} 5. Bxc4 {[%emt 0:00:05]} Be7 {[%emt 0:00:02]} 6. Bb2
{[%emt 0:00:01]} O-O {[%emt 0:00:01]} 7. O-O {[%emt 0:00:01]} b6 {[%emt 0:00:
02]} 8. Nc3 {[%emt 0:00:04]} Bb7 {[%emt 0:00:01]} 9. Qe2 {[%emt 0:00:02]} Nc6 {
[%emt 0:00:01]} 10. Rac1 {[%emt 0:00:04]} Qd7 {[%emt 0:00:07]} 11. Bb5 {
[%emt 0:00:04]} Bd6 {[%emt 0:00:08]} 12. d4 {[%emt 0:00:09]} Qe7 {[%emt 0:00:
06]} 13. Bxc6 {[%emt 0:00:31]} Bxc6 {[%emt 0:00:02]} 14. Nb5 {[%emt 0:00:01]}
Bb7 {[%emt 0:00:07]} 15. Nxd6 {[%emt 0:00:05]} Qxd6 {[%emt 0:00:03]} 16. Ne5 {
[%emt 0:00:07]} Qd5 {[%emt 0:00:10]} 17. f3 {[%emt 0:00:01]} Qd6 {[%emt 0:00:
03]} 18. Rc2 {[%emt 0:00:07]} Nd7 {[%emt 0:00:04]} 19. Rfc1 {[%emt 0:00:19]}
Rac8 {[%emt 0:00:06]} 20. Ng4 {[%emt 0:00:11]} f6 {[%emt 0:00:09]} 21. Nf2 {
[%emt 0:00:06]} c5 {[%emt 0:00:11]} 22. dxc5 {[%emt 0:00:04]} Nxc5 {[%emt 0:00:
03]} 23. Ba3 {[%emt 0:00:02]} Qe5 {[%emt 0:00:14]} 24. Bxc5 {[%emt 0:00:04]}
bxc5 {[%emt 0:00:03]} 25. Nd3 {[%emt 0:00:06]} Qd5 {[%emt 0:00:06]} 26. Nxc5 {
[%emt 0:00:03]} Ba8 {[%emt 0:00:03]} 27. b4 {[%emt 0:00:04]} Rfd8 {[%emt 0:00:
07]} 28. h3 {[%emt 0:00:11]} f5 {[%emt 0:00:05]} 29. Qc4 {[%emt 0:00:10]} Qxc4
{[%emt 0:00:04]} 30. Rxc4 {[%emt 0:00:00]} Bd5 {[%emt 0:00:02]} 31. R4c2 {
[%emt 0:00:01]} Kf7 {[%emt 0:00:02]} 32. a3 {[%emt 0:00:05]} Ke7 {[%emt 0:00:
03]} 33. Kh2 {[%emt 0:00:08]} g6 {[%emt 0:00:03]} 34. Kg3 {[%emt 0:00:01]} g5 {
[%emt 0:00:03]} 35. e4 {[%emt 0:00:04]} Ba8 {[%emt 0:00:08]} 36. exf5 {[%emt 0:
00:04]} exf5 {[%emt 0:00:02]} 37. Re2+ {[%emt 0:00:01]} Kf6 {[%emt 0:00:05]}
38. Rce1 {[%emt 0:00:02]} h5 {[%emt 0:00:05]} 39. Re6+ {[%emt 0:00:03]} Kg7 {
[%emt 0:00:03]} 40. Re7+ {[%emt 0:00:01]} Kg8 {[%emt 0:00:02]} 41. R1e5 {
[%emt 0:00:06]} f4+ {[%emt 0:00:05]} 42. Kh2 {[%emt 0:00:01]} Rd5 {[%emt 0:00:
04]} 43. Rxd5 {[%emt 0:00:03]} Bxd5 {[%emt 0:00:02]} 44. Re5 {[%emt 0:00:01]}
Ba8 {[%emt 0:00:25]} 45. Rxg5+ {[%emt 0:00:03]} Kf7 {[%emt 0:00:05]} 46. Rf5+ {
[%emt 0:00:02]} Kg6 {[%emt 0:00:02]} 47. Rxf4 {[%emt 0:00:00]} Kg5 {[%emt 0:00:
03]} 48. Rf7 {[%emt 0:00:02]} Kg6 {[%emt 0:00:02]} 49. Rxa7 {[%emt 0:00:01]} h4
{[%emt 0:00:02]} 50. Rd7 {[%emt 0:00:04]} Bc6 {[%emt 0:00:02]} 51. Rd4 {
[%emt 0:00:02]} Kf7 {[%emt 0:00:01]} 52. Rxh4 {[%emt 0:00:02]} Kg6 {[%emt 0:00:
01]} 53. a4 {[%emt 0:00:04]} Kg7 {[%emt 0:00:02]} 54. a5 {[%emt 0:00:02]} Kg6 {
[%emt 0:00:01]} 55. a6 {[%emt 0:00:01]} Kg7 {[%emt 0:00:01]} 56. Rg4+ {[%emt 0:
00:05]} Kh7 {[%emt 0:00:02]} 57. Rd4 {[%emt 0:00:03]} Ba8 {[%emt 0:00:02]} 58.
a7 {[%emt 0:00:02]} Kg6 {[%emt 0:00:02]} 59. Na4 {[%emt 0:00:12]} Kh7 {[%emt 0:
00:03]} 60. b5 {[%emt 0:00:01]} Kg6 {[%emt 0:00:01]} 61. Nb6 {[%emt 0:00:01]}
Rg8 {[%emt 0:00:02]} 62. Nxa8 {[%emt 0:00:01]} Rxa8 {[%emt 0:00:02]} 63. b6 {
[%emt 0:00:01]} Kf7 {[%emt 0:00:01]} 64. b7 {[%emt 0:00:01]} Rxa7 {[%emt 0:00:
04]} 65. b8=Q {[%emt 0:00:02]} Re7 {[%emt 0:00:01]} 66. Rf4+ {[%emt 0:00:02]}
Ke6 {[%emt 0:00:01]} 67. Re4+ {[%emt 0:00:02]} Kf7 {[%emt 0:00:01]} 68. Rxe7+ {
[%emt 0:00:00]} Kxe7 {[%emt 0:00:01]} 69. h4 {[%emt 0:00:01]} Kf6 {[%emt 0:00:
01]} 70. h5 {[%emt 0:00:00]} Kg7 {[%emt 0:00:01]} 71. Qe5+ {[%emt 0:00:02]} Kh7
{[%emt 0:00:01]} 72. g4 {[%emt 0:00:05]} Kg8 {[%emt 0:00:01]} 73. h6 {[%emt 0:
00:02]} Kh7 {[%emt 0:00:01]} 74. Qh5 {[%emt 0:00:01]} Kg8 {[%emt 0:00:02]} 75.
h7+ {[%emt 0:00:01]} Kh8 {[%emt 0:00:01]} 76. f4 {[%emt 0:00:01]} Kg7 {[%emt 0:
00:01]} 77. h8=Q# {[%emt 0:00:01] Sucikova, Svetlana won by checkmate} 1-0

[Event "Live Chess"]
[Site "Chess.com"]
[Date "2020.05.16"]
[Round "2.41"]
[White "Diakonova, Ekaterina"]
[Black "Karas, Eugenia"]
[Result "1/2-1/2"]
[ECO "C07"]
[WhiteElo "2135"]
[BlackElo "1835"]
[PlyCount "82"]
[EventDate "2020.??.??"]
[TimeControl "180+2"]
[WhiteClock "0:00:11"]
[BlackClock "0:00:15"]

1. e4 {[%emt 0:00:02]} e6 {[%emt 0:00:06]} 2. d4 {[%emt 0:00:01]} d5 {[%emt 0:
00:01]} 3. Nd2 {[%emt 0:00:00]} c5 {[%emt 0:00:02]} 4. Ngf3 {[%emt 0:00:03]}
dxe4 {[%emt 0:00:08]} 5. Nxe4 {[%emt 0:00:02]} cxd4 {[%emt 0:00:05]} 6. Nxd4 {
[%emt 0:00:05]} Nf6 {[%emt 0:00:10]} 7. Nxf6+ {[%emt 0:00:52]} Qxf6 {[%emt 0:
00:02]} 8. Be3 {[%emt 0:00:01]} Qd8 {[%emt 0:00:26]} 9. Be2 {[%emt 0:00:03]}
Nd7 {[%emt 0:00:07]} 10. O-O {[%emt 0:00:02]} Be7 {[%emt 0:00:03]} 11. c4 {
[%emt 0:00:02]} O-O {[%emt 0:00:04]} 12. a3 {[%emt 0:00:12]} Nf6 {[%emt 0:00:
01]} 13. b4 {[%emt 0:00:06]} Qc7 {[%emt 0:00:09]} 14. Nb5 {[%emt 0:00:18]} Qb8
{[%emt 0:00:44]} 15. Qc2 {[%emt 0:00:29]} Bd7 {[%emt 0:00:11]} 16. Nd4 {
[%emt 0:00:07]} Qc7 {[%emt 0:00:20]} 17. Rac1 {[%emt 0:00:19]} Rac8 {[%emt 0:
00:04]} 18. h3 {[%emt 0:00:02]} b6 {[%emt 0:00:05]} 19. Bf3 {[%emt 0:00:04]}
Rfd8 {[%emt 0:00:15]} 20. Rfe1 {[%emt 0:00:21]} a5 {[%emt 0:00:06]} 21. Qb2 {
[%emt 0:00:06]} axb4 {[%emt 0:00:03]} 22. axb4 {[%emt 0:00:01]} Qd6 {[%emt 0:
00:11]} 23. b5 {[%emt 0:00:09]} Qc7 {[%emt 0:00:05]} 24. Nc6 {[%emt 0:00:02]}
Bxc6 {[%emt 0:00:03]} 25. Bxc6 {[%emt 0:00:01]} Ne8 {[%emt 0:00:07]} 26. Ra1 {
[%emt 0:00:02]} Nd6 {[%emt 0:00:02]} 27. Qb3 {[%emt 0:00:04]} Nf5 {[%emt 0:00:
04]} 28. Ra6 {[%emt 0:00:05]} Nxe3 {[%emt 0:00:02]} 29. Qxe3 {[%emt 0:00:01]}
Bc5 {[%emt 0:00:02]} 30. Qf3 {[%emt 0:00:01]} Rb8 {[%emt 0:00:02]} 31. Rea1 {
[%emt 0:00:05]} Qd6 {[%emt 0:00:02]} 32. g3 {[%emt 0:00:07]} Rf8 {[%emt 0:00:
02]} 33. R6a2 {[%emt 0:00:02]} Qd4 {[%emt 0:00:02]} 34. Rd1 {[%emt 0:00:01]}
Qxc4 {[%emt 0:00:01]} 35. Re2 {[%emt 0:00:04]} Qb4 {[%emt 0:00:05]} 36. Red2 {
[%emt 0:00:01]} Qa5 {[%emt 0:00:02]} 37. Kg2 {[%emt 0:00:01]} Qb4 {[%emt 0:00:
02]} 38. Rd7 {[%emt 0:00:01]} Qc4 {[%emt 0:00:04]} 39. R7d2 {[%emt 0:00:03]}
Qb4 {[%emt 0:00:01]} 40. Rd7 {[%emt 0:00:01]} Qc4 {[%emt 0:00:01]} 41. R7d2 {
[%emt 0:00:01]} Qb4 {[%emt 0:00:01] Game drawn by repetition} 1/2-1/2